bitfinex-derivatives/quotes_ETHF0:USTF0_20260120
["timestamp","ask_amount","ask_price","bid_price","bid_amount"]
[1768932050003,1.29308851,3005.5,3004.2,2.67251432]
[1768932050302,2.53537075,3005.9,3004.2,2.67251432]
[1768932050503,1.29313897,3005.8,3004.2,2.67251432]
[1768932050698,1.29313897,3005.7,3004.2,2.67251432]
[1768932050898,1.29313897,3005.6,3004.2,2.67251432]
[1768932051204,1.29313897,3005.5,3004.2,2.67251432]
[1768932051499,2.53537075,3005.9,3004.2,2.67251432]
[1768932051704,2.53537075,3005.7,3003.8,2.67251432]
[1768932051906,1.29288722,3005.6,3003.8,2.67251432]
[1768932052203,1.29288722,3005.5,3003.8,2.67251432]
[1768932052505,3.82825797,3005.4,3003.8,2.67251432]
[1768932052705,1.29288722,3005.3,3003.8,2.67251432]
[1768932052899,2.53537075,3005.4,3003.8,2.67251432]
[1768932053103,1.29327832,3005.3,3003.8,2.67251432]
[1768932053402,2.70191075,3005.1,3003.4,0.00234211]
[1768932053704,1.29351031,3005.0,3003.4,0.00234211]
[1768932053897,1.29351031,3004.9,3003.4,2.67485643]
[1768932054100,1.29351031,3004.8,3003.4,2.67485643]
[1768932054297,2.70191075,3005.1,3003.4,2.67485643]
[1768932054503,1.287759,3005.0,3003.8,2.67251432]
[1768932054703,2.53537075,3005.5,3003.8,2.67251432]
[1768932055004,1.28777286,3005.4,3003.8,2.67251432]
[1768932055203,1.28777286,3005.3,3003.8,2.67251432]
[1768932055400,1.28777286,3005.2,3003.8,2.67251432]
[1768932055597,1.28777286,3005.1,3003.8,2.67251432]
[1768932055790,0.34015118,3005.0,3003.8,2.67251432]
[1768932055995,2.53537075,3005.4,3003.8,2.67251432]
[1768932056303,1.28825145,3005.3,3003.8,2.67251432]
[1768932056509,1.28825145,3005.2,3003.8,2.67251432]
[1768932056807,1.28825145,3005.1,3003.8,2.67251432]
[1768932057106,0.34015801,3005.0,3003.8,2.67251432]
[1768932057306,2.53537075,3005.4,3003.8,2.67251432]
[1768932057607,1.28812996,3005.3,3003.8,2.67251432]
[1768932057902,1.28812996,3005.2,3003.8,2.67251432]
[1768932058110,1.28812996,3005.1,3003.8,2.67251432]
[1768932058299,0.34012593,3005.0,3003.4,0.00234211]
[1768932058499,0.34012593,3004.9,3003.4,2.67485643]
[1768932058699,2.70190075,3005.3,3003.4,2.67485643]
[1768932058903,1.28802976,3005.2,3003.4,2.67485643]
[1768932059107,1.28802976,3005.1,3003.4,2.67485643]
[1768932059306,1.28802976,3005.0,3003.4,2.67485643]
[1768932059506,0.34009505,3004.9,3003.4,2.67485643]
[1768932059707,0.16653,3005.2,3003.4,2.67485643]
[1768932060009,1.28804826,3005.1,3003.4,2.67485643]
[1768932060211,1.28804826,3005.0,3003.4,2.67485643]
[1768932060414,0.34009923,3004.9,3003.4,2.67485643]
[1768932060607,0.16653,3005.2,3003.7,4.46988996]
[1768932060804,0.34022904,3005.1,3003.8,2.67251432]
[1768932061002,0.34022904,3005.0,3003.8,2.67251432]
[1768932061197,0.16651,3005.6,3003.8,2.67251432]
[1768932061501,0.16651,3005.6,3003.4,0.00234211]
[1768932061502,2.53537075,3004.9,3003.4,0.00234211]
[1768932061807,2.70193075,3004.7,3003.4,0.00234211]
[1768932062010,1.28849556,3004.6,3003.4,0.00234211]
[1768932062204,2.70193075,3004.7,3003.4,0.00234211]
[1768932062205,1.28799136,3004.5,3003.4,0.00234211]
[1768932062401,0.34023372,3004.4,3003.4,0.00234211]
[1768932062608,3.657,3005.0,3003.4,0.00234211]
[1768932062811,1.28783246,3004.9,3003.4,0.00234211]
[1768932063010,1.28783246,3004.8,3003.4,0.00234211]
[1768932063211,1.28783246,3004.7,3003.4,0.00234211]
[1768932063405,3.82240876,3004.6,3003.4,0.00234211]
[1768932063605,2.53537075,3004.4,3003.4,0.00234211]
[1768932063804,0.34004901,3004.3,3003.4,0.00234211]
[1768932064005,2.53537075,3004.4,3003.4,0.00234211]
[1768932064210,2.53537075,3004.9,3003.4,0.00234211]
[1768932064411,1.28630925,3004.8,3003.4,0.00234211]
[1768932064611,2.53537075,3004.6,3003.4,0.00234211]
[1768932064811,2.53537075,3004.4,3003.4,0.00234211]
[1768932065012,0.33977973,3004.3,3003.4,0.00234211]
[1768932065212,2.53537075,3004.4,3003.4,0.00234211]
[1768932065808,0.33961595,3004.3,3003.4,0.00234211]
[1768932066006,2.53537075,3004.4,3003.4,0.00234211]
[1768932066206,0.16657,3004.5,3003.4,0.00234211]
[1768932066812,2.53537075,3004.9,3003.4,0.00234211]
[1768932067014,0.3395423,3004.8,3003.7,1.79737564]
[1768932067209,2.70189075,3005.4,3003.7,1.79737564]
[1768932067210,2.53537075,3005.4,3003.7,4.46988996]
[1768932067408,1.28572315,3005.3,3003.7,2.67251432]
[1768932067617,0.33963563,3005.2,3003.9,2.67251432]
[1768932067815,2.53537075,3005.9,3004.3,2.67251432]
[1768932068111,2.53537075,3005.7,3003.8,4.46988996]
[1768932068314,2.87513365,3005.6,3003.8,2.67251432]
[1768932068517,0.3397629,3005.5,3003.9,2.67251432]
[1768932068709,0.1665,3005.7,3003.9,2.67251432]
[1768932069027,3.04169361,3005.6,3003.9,2.67251432]
[1768932069211,2.87518361,3005.5,3003.9,2.67251432]
[1768932069404,0.33981286,3005.4,3003.9,2.67251432]
[1768932069710,2.53537075,3006.0,3003.9,2.67251432]
[1768932069921,1.28650941,3005.9,3003.9,2.67251432]
[1768932070216,1.28650941,3005.8,3003.9,2.67251432]
[1768932070418,0.33984437,3005.7,3003.9,2.67251432]
[1768932070618,0.33984437,3005.6,3003.9,2.67251432]
[1768932070813,2.53537075,3006.0,3003.9,2.67251432]
[1768932071115,3.82179697,3005.9,3003.9,2.67251432]
[1768932071306,2.53537075,3005.7,3003.9,2.67251432]
[1768932071613,2.53537075,3005.5,3003.9,2.67251432]
[1768932071914,0.33982145,3005.4,3003.9,2.67251432]
[1768932072611,3.0417122,3005.4,3003.4,4.47223207]
[1768932072810,3.8224715,3005.3,3003.4,4.47223207]
[1768932073015,0.33982145,3005.2,3003.5,2.67251432]
[1768932073216,2.53537075,3005.1,3003.4,0.00234211]
[1768932073421,2.53537075,3004.9,3003.4,0.00234211]
[1768932073713,2.70193075,3004.6,3003.4,0.00234211]
[1768932074018,2.53537075,3004.4,3002.5,2.67251432]
[1768932074219,2.53537075,3004.2,3002.5,2.67251432]
[1768932074420,0.33982145,3004.1,3002.5,2.67251432]
[1768932074620,0.34000084,3004.0,3002.5,2.67251432]
[1768932074808,0.34000084,3004.0,3002.2,1.79737564]
[1768932074809,2.53537075,3004.1,3002.2,1.79737564]
[1768932075014,0.3399276,3004.0,3002.8,1.79737564]
[1768932075320,0.00325973,3004.1,3002.8,1.79737564]
[1768932075713,0.00325973,3004.1,3003.2,1.79737564]
[1768932076022,2.87635558,3005.0,3003.2,4.34693477]
[1768932076218,1.28687479,3004.9,3003.2,4.34693477]
[1768932076420,1.28687479,3004.8,3003.2,4.34693477]
[1768932076716,0.33995081,3004.7,3003.2,4.34693477]
[1768932076919,0.33995081,3004.6,3003.2,4.34693477]
[1768932077119,0.00419835,3004.7,3003.2,4.34693477]
[1768932077320,0.33997478,3004.6,3003.2,2.54955913]
[1768932077521,0.33997478,3004.5,3002.8,1.79737564]
[1768932077713,0.33997478,3004.4,3002.8,1.79737564]
[1768932077912,0.00419835,3004.7,3002.8,4.34693477]
[1768932078124,0.33996878,3004.6,3002.8,4.34693477]
[1768932078420,0.33996878,3004.5,3002.8,4.34693477]
[1768932078729,0.1666,3003.9,3002.3,2.54955913]
[1768932078915,0.33996878,3003.8,3002.3,2.54955913]
[1768932079114,0.1666,3003.9,3002.3,2.54955913]
[1768932079315,0.33965418,3003.8,3002.3,2.54955913]
[1768932079522,0.1666,3003.9,3002.3,2.54955913]
[1768932079720,0.33965336,3003.8,3002.3,2.54955913]
[1768932079923,0.1666,3003.9,3002.3,2.54955913]
[1768932080119,0.33968711,3003.8,3002.3,2.54955913]
[1768932080321,0.1666,3003.9,3002.3,2.54955913]
[1768932080515,0.00419835,3004.7,3002.3,2.54955913]
[1768932080516,2.70980558,3004.5,3002.3,2.54955913]
[1768932080821,1.28558143,3004.4,3002.6,2.54955913]
[1768932081017,0.33960738,3004.3,3003.0,2.54955913]
[1768932081220,0.16657,3004.6,3003.0,2.54955913]
[1768932081416,0.33971722,3004.5,3003.0,2.54955913]
[1768932081723,0.33971722,3004.4,3002.6,2.54955913]
[1768932082024,2.87637558,3004.6,3002.6,2.54955913]
[1768932082227,3.99629524,3004.5,3002.6,2.54955913]
[1768932082424,3.04956119,3004.4,3002.6,2.54955913]
[1768932082723,0.33987494,3004.3,3002.6,2.54955913]
[1768932082914,2.70980558,3004.4,3002.6,2.54955913]
[1768932083225,0.16657,3004.6,3002.6,2.54955913]
[1768932083418,0.33990483,3004.5,3002.6,2.54955913]
[1768932083614,0.33990483,3004.4,3002.6,2.54955913]
[1768932083821,0.16657,3004.6,3002.6,2.54955913]
[1768932084124,1.28680376,3004.5,3002.6,2.54955913]
[1768932084324,0.33991717,3004.4,3002.6,2.54955913]
[1768932084526,0.16657,3004.6,3002.6,2.54955913]
[1768932084727,0.33993556,3004.5,3002.6,2.54955913]
[1768932085019,0.33993556,3004.4,3002.6,2.54955913]
[1768932085223,0.33993556,3004.3,3002.6,2.54955913]
[1768932085428,0.16657,3004.6,3003.0,2.54955913]
[1768932085622,0.33996968,3004.5,3003.0,2.54955913]
[1768932085821,0.00419835,3004.7,3003.0,2.54955913]
[1768932086122,0.33987373,3004.6,3003.0,2.54955913]
[1768932086423,0.00419835,3004.7,3003.0,2.54955913]
[1768932086627,0.33980597,3004.6,3003.0,2.54955913]
[1768932086819,0.00419835,3004.7,3003.0,2.54955913]
[1768932087030,0.33979966,3004.6,3003.0,2.54955913]
[1768932087219,0.00419835,3004.7,3003.0,2.54955913]
[1768932087428,0.33985928,3004.6,3003.0,2.54955913]
[1768932087629,0.33985928,3004.6,3002.2,0.00400897]
[1768932087630,0.00419835,3004.7,3003.4,2.54955913]
[1768932091328,1.96652,3005.4,3003.4,2.54955913]
[1768932091329,0.16652,3005.4,3003.4,2.54955913]
[1768932091535,2.70980558,3006.1,3003.6,2.71617913]
[1768932091724,1.28725244,3006.0,3003.6,2.71617913]
[1768932091924,2.70980558,3006.1,3003.6,2.71617913]
[1768932091925,1.28725244,3005.9,3003.6,2.71617913]
[1768932092124,2.70980558,3006.1,3003.6,2.71617913]
[1768932092125,0.34003264,3005.8,3003.6,2.71617913]
[1768932092325,0.34003264,3005.7,3003.6,2.71617913]
[1768932092627,0.34003264,3005.6,3003.6,2.71617913]
[1768932092827,0.00325267,3005.8,3003.6,2.71617913]
[1768932093030,0.34003802,3005.7,3003.6,2.71617913]
[1768932093228,0.34003802,3005.6,3003.6,2.71617913]
[1768932093532,0.00325267,3005.8,3003.6,2.71617913]
[1768932093832,0.33992553,3005.7,3003.6,2.71617913]
[1768932094035,0.33992553,3005.6,3003.6,2.71617913]
[1768932094335,0.16975267,3005.8,3003.6,2.71617913]
[1768932094527,1.28663138,3005.7,3003.6,2.71617913]
[1768932094725,0.33987051,3005.6,3003.6,2.71617913]
[1768932094935,0.16975267,3005.8,3003.6,2.71617913]
[1768932095134,1.28667015,3005.7,3003.6,2.71617913]
[1768932095437,0.33988075,3005.6,3003.6,2.71617913]
[1768932095731,0.16975267,3005.8,3003.6,2.71617913]
[1768932095935,1.28496032,3005.7,3003.6,2.71617913]
[1768932096134,0.33985883,3005.6,3003.6,2.71617913]
[1768932096331,0.16975267,3005.8,3003.6,2.71617913]
[1768932096530,0.00325267,3005.8,3004.1,2.54955913]
[1768932098033,0.33988534,3005.7,3004.1,2.54955913]
[1768932098238,2.87955825,3005.8,3004.1,2.54955913]
[1768932098437,1.28513807,3005.7,3004.1,2.54955913]
[1768932098729,0.33990528,3005.6,3004.1,2.54955913]
[1768932098936,0.33990528,3005.5,3004.1,2.54955913]
[1768932099137,2.87955825,3005.8,3004.1,2.54955913]
[1768932099336,1.28511394,3005.7,3004.1,2.54955913]
[1768932099536,1.45158753,3005.6,3004.1,2.54955913]
[1768932099734,2.87632558,3005.4,3003.6,2.54955913]
[1768932100039,0.33989959,3005.3,3003.6,2.54955913]
[1768932100242,2.87632558,3005.4,3003.6,2.54955913]
[1768932100441,0.33991235,3005.3,3003.6,2.54955913]
[1768932100639,2.87632558,3005.4,3003.6,2.54955913]
[1768932100833,0.50643664,3005.3,3003.6,2.54955913]
[1768932101134,3.21620987,3005.2,3003.6,2.54955913]
[1768932101339,3.04967987,3005.1,3003.6,2.54955913]
[1768932101639,0.33987429,3005.0,3003.6,2.54955913]
[1768932102130,0.16653,3005.2,3003.6,2.54955913]
[1768932102337,0.33995661,3005.1,3003.6,2.54955913]
[1768932102535,0.33995661,3005.0,3003.6,2.54955913]
[1768932102746,2.70980558,3005.6,3003.6,2.54955913]
[1768932102942,1.28546486,3005.5,3003.6,2.54955913]
[1768932103146,0.33999304,3005.4,3003.6,2.54955913]
[1768932103338,2.87955825,3005.8,3003.6,2.54955913]
[1768932103534,1.28549531,3005.7,3003.6,2.54955913]
[1768932103736,1.28549531,3005.6,3003.6,2.54955913]
[1768932103937,1.45203615,3005.5,3003.6,2.54955913]
[1768932104236,2.79101262,3005.3,3003.6,2.54955913]
[1768932104434,0.34000063,3005.2,3003.6,2.54955913]
[1768932105344,2.71686775,3005.0,3003.0,2.69084617]
[1768932105640,0.16657,3004.6,3003.0,2.69084617]
[1768932105834,6.04886775,3005.0,3002.5,2.69084617]
[1768932105835,2.88344775,3004.3,3002.5,2.69084617]
[1768932106039,0.33993881,3004.2,3002.5,2.69084617]
[1768932106336,3.05680656,3004.1,3002.5,2.69084617]
[1768932106541,3.05680656,3004.0,3002.2,3.33600897]
[1768932106742,2.71686775,3004.0,3002.2,3.33600897]
[1768932107043,0.33985495,3003.9,3002.2,3.33600897]
[1768932107248,0.33985495,3003.8,3002.2,6.02685514]
[1768932107449,2.71686775,3004.0,3002.3,2.69084617]
[1768932107745,0.33977474,3003.9,3002.3,2.69084617]
[1768932107936,0.33977474,3003.8,3002.3,2.69084617]
[1768932108142,2.88347775,3003.9,3002.3,2.69084617]
[1768932108342,0.33966918,3003.8,3002.3,2.69084617]
[1768932108542,2.88347775,3003.9,3002.3,2.69084617]
[1768932109354,2.71686775,3003.9,3002.3,2.69084617]
[1768932110040,2.88346775,3003.9,3002.3,2.69084617]
[1768932110248,3.05655103,3003.8,3002.2,0.00400897]
[1768932110450,2.71686775,3003.8,3002.2,0.00400897]
[1768932110841,2.71686775,3003.5,3002.2,0.00400897]
[1768932111041,0.33965251,3003.4,3002.2,0.00400897]
[1768932111241,2.71991155,3003.5,3002.2,0.00400897]
[1768932111649,0.16664,3003.3,3002.2,0.00400897]
[1768932111950,2.71991155,3003.5,3002.2,0.00400897]
[1768932113247,0.0030438,3003.5,3002.2,0.00400897]
[1768932114746,2.71991155,3003.5,3002.2,0.00400897]
[1768932119756,2.88349775,3003.4,3002.2,0.00400897]
[1768932120354,1.8610438,3003.5,3002.2,0.00400897]
[1768932121352,2.88350775,3003.2,3002.2,0.00400897]
[1768932121553,0.0030438,3003.5,3002.2,0.00400897]
[1768932124567,0.0030438,3003.5,3002.2,2.69485514]
[1768932126859,0.0030438,3003.5,3002.2,0.00400897]
[1768932127057,2.71991155,3003.5,3002.2,0.00400897]
[1768932128968,0.0030438,3003.5,3002.2,2.69485514]
[1768932134062,0.34049595,3003.4,3002.2,0.00400897]
[1768932134263,0.0030438,3003.5,3002.2,0.00400897]
[1768932134463,1.28678166,3003.4,3002.2,0.00400897]
[1768932134769,1.28678166,3003.3,3002.2,0.00400897]
[1768932134965,0.34048922,3003.2,3002.2,0.00400897]
[1768932135272,0.34103347,3003.1,3002.2,0.00400897]
[1768932135470,0.1696738,3003.5,3002.2,0.00400897]
[1768932135471,0.0030438,3003.5,3002.2,0.00400897]
[1768932135671,0.341045,3003.4,3002.2,2.61075321]
[1768932135968,0.16659,3004.1,3002.2,2.61075321]
[1768932136274,1.28901319,3004.0,3002.2,2.61075321]
[1768932136472,1.28901319,3003.9,3002.2,2.61075321]
[1768932136671,1.28901319,3003.8,3002.2,2.61075321]
[1768932136871,1.28901319,3003.7,3002.2,2.61075321]
[1768932137072,0.34110484,3003.6,3002.2,2.61075321]
[1768932137468,0.34116404,3003.5,3002.2,2.61075321]
[1768932137776,0.34114928,3003.4,3002.2,2.61075321]
[1768932138075,0.34114928,3003.3,3002.2,2.61075321]
[1768932138268,0.16662,3003.6,3002.2,2.61075321]
[1768932138466,1.28836894,3003.5,3002.2,2.61075321]
[1768932138772,1.28836894,3003.4,3002.2,2.61075321]
[1768932138965,0.34112136,3003.3,3002.2,2.61075321]
[1768932139165,0.16662,3003.6,3002.2,2.61075321]
[1768932139367,1.28836079,3003.5,3002.2,2.61075321]
[1768932139673,0.3411185,3003.4,3002.2,2.61075321]
[1768932139868,0.3411185,3003.3,3002.2,2.61075321]
[1768932140175,0.16662,3003.6,3002.2,2.61075321]
[1768932140366,1.28827232,3003.5,3002.2,2.61075321]
[1768932140668,1.28824977,3003.4,3002.2,0.00400897]
[1768932140971,0.34110013,3003.3,3002.2,0.00400897]
[1768932141159,0.16662,3003.6,3002.2,0.00400897]
[1768932141368,1.28820908,3003.5,3002.2,0.00400897]
[1768932141566,1.28820908,3003.4,3002.2,0.00400897]
[1768932141865,0.34107899,3003.3,3002.2,0.00400897]
[1768932142067,0.16662,3003.6,3002.2,0.00400897]
[1768932142375,1.28807243,3003.5,3002.2,0.00400897]
[1768932142569,1.28807243,3003.4,3002.2,0.00400897]
[1768932142771,0.34104357,3003.3,3002.2,0.00400897]
[1768932143067,0.16662,3003.6,3002.2,0.00400897]
[1768932143268,1.28805758,3003.5,3002.2,0.00400897]
[1768932143475,1.28805758,3003.4,3002.2,0.00400897]
[1768932143670,1.28804476,3003.3,3002.2,0.00400897]
[1768932143878,0.34104096,3003.2,3002.2,0.00400897]
[1768932144074,0.16663,3003.5,3002.2,0.00400897]
[1768932144277,1.28800435,3003.4,3002.2,0.00400897]
[1768932144478,1.28800435,3003.3,3002.2,0.00400897]
[1768932144774,0.34103277,3003.2,3002.2,0.00400897]
[1768932144976,0.34103277,3003.1,3002.2,0.00400897]
[1768932145167,0.16663,3003.5,3002.2,0.00400897]
[1768932145367,1.2880129,3003.4,3002.2,0.00400897]
[1768932145564,0.16663,3003.5,3002.2,0.00400897]
[1768932145565,1.28812701,3003.3,3002.2,0.00400897]
[1768932145767,1.28845194,3003.2,3002.2,0.00400897]
[1768932145976,1.28836555,3003.1,3002.2,0.00400897]
[1768932146168,1.28836555,3003.0,3002.2,0.00400897]
[1768932146372,0.34114208,3002.9,3002.2,0.00400897]
[1768932146677,0.34114208,3002.8,3002.2,0.00400897]
[1768932146876,2.67991909,3003.4,3002.2,0.00400897]
[1768932147079,3.96828097,3003.3,3002.2,0.00400897]
[1768932147277,1.28836188,3003.2,3002.2,0.00400897]
[1768932147478,1.28836188,3003.1,3002.2,0.00400897]
[1768932147666,2.67991909,3003.3,3002.2,0.00400897]
[1768932147667,0.34112148,3003.0,3002.2,0.00400897]
[1768932147871,0.34112148,3002.9,3002.2,0.00400897]
[1768932148071,2.67991909,3003.3,3002.2,0.00400897]
[1768932148272,1.28850889,3003.2,3002.2,0.00400897]
[1768932148474,1.28850889,3003.1,3002.2,0.00400897]
[1768932148671,0.34114149,3003.0,3002.2,0.00400897]
[1768932148875,0.34114149,3002.9,3002.2,0.00400897]
[1768932149070,2.67991909,3003.3,3002.2,0.00400897]
[1768932149280,1.28881569,3003.2,3002.2,0.00400897]
[1768932149582,1.28881569,3003.1,3002.2,0.00400897]
[1768932149781,0.34122894,3003.0,3002.2,0.00400897]
[1768932149980,0.34122894,3002.9,3002.2,0.00400897]
[1768932150279,2.67991909,3003.3,3002.2,0.00400897]
[1768932150481,1.28892897,3003.2,3002.2,0.00400897]
[1768932150680,1.28892897,3003.1,3002.2,0.00400897]
[1768932150879,0.34126377,3003.0,3002.2,0.00400897]
[1768932151080,0.34126377,3002.9,3002.2,0.00400897]
[1768932151283,2.67991909,3003.3,3002.2,0.00400897]
[1768932151590,1.28890737,3003.2,3002.2,0.00400897]
[1768932151781,1.28890737,3003.1,3002.2,0.00400897]
[1768932151982,0.34125767,3003.0,3002.2,0.00400897]
[1768932152279,0.34125767,3002.9,3002.2,0.00400897]
[1768932152474,2.67991909,3003.3,3002.2,0.00400897]
[1768932152678,1.28887615,3003.2,3002.2,0.00400897]
[1768932152883,1.28887615,3003.1,3002.2,0.00400897]
[1768932153083,0.3412523,3003.0,3002.2,0.00400897]
[1768932153290,0.3412523,3002.9,3002.2,0.00400897]
[1768932153585,2.67991909,3003.3,3002.2,0.00400897]
[1768932153785,1.28883126,3003.2,3002.2,0.00400897]
[1768932153985,1.28883126,3003.1,3002.2,0.00400897]
[1768932154182,0.34124093,3003.0,3002.2,0.00400897]
[1768932154381,2.84658909,3002.7,3001.2,2.60674424]
[1768932154576,0.34124093,3002.6,3001.2,2.60674424]
[1768932154781,0.34124093,3002.5,3001.2,2.60674424]
[1768932154981,2.67991909,3002.7,3001.7,1.1668616]
[1768932155185,0.34117445,3002.6,3001.7,1.1668616]
[1768932155380,0.34117445,3002.6,3001.2,2.60674424]
[1768932155381,2.67991909,3003.1,3002.1,1.1668616]
[1768932155582,1.28826577,3003.0,3002.3,1.1668616]
[1768932155888,1.28826577,3002.9,3002.3,1.1668616]
[1768932156085,0.34109336,3002.8,3002.3,1.1668616]
[1768932156285,1.3335016,3003.2,3002.1,1.1668616]
[1768932156491,1.3335016,3003.2,3001.7,0.00429758]
[1768932156492,1.1668616,3002.8,3001.7,0.00429758]
[1768932156690,1.1668616,3002.6,3001.7,0.00429758]
[1768932156982,0.34098231,3002.5,3001.7,0.00429758]
[1768932157174,1.1668616,3002.6,3001.7,0.00429758]
[1768932157377,0.34085376,3002.5,3001.7,0.00429758]
[1768932157587,1.1668616,3002.6,3001.7,0.00429758]
[1768932157787,0.34084778,3002.5,3001.7,0.00429758]
[1768932157979,1.1668616,3002.6,3001.7,0.00429758]
[1768932158181,1.1668616,3002.4,3001.7,0.00429758]
[1768932158882,2.84659909,3002.6,3001.7,0.00429758]
[1768932159082,0.34072654,3002.5,3001.7,0.00429758]
[1768932159294,0.34072654,3002.4,3001.7,0.00429758]
[1768932159580,2.84659909,3002.6,3001.7,0.00429758]
[1768932159774,0.34061408,3002.5,3001.7,0.00429758]
[1768932159978,0.34061408,3002.4,3001.7,0.00429758]
[1768932160174,2.84659909,3002.6,3001.7,0.00429758]
[1768932160378,3.02042852,3002.5,3001.7,0.00429758]
[1768932160579,0.34050943,3002.4,3001.7,0.00429758]
[1768932160775,2.67991909,3002.5,3001.7,0.00429758]
[1768932160984,2.67991909,3002.5,3000.4,5.297]
[1768932160985,2.67991909,3002.3,3000.5,2.60674424]
[1768932161185,2.67991909,3002.1,3000.5,2.60674424]
[1768932162091,2.67991909,3002.1,3000.5,2.60923244]
[1768932163190,0.1667,3002.2,3000.8,2.60674424]
[1768932163389,0.16667,3002.7,3001.2,2.60674424]
[1768932163589,0.34011422,3002.6,3001.2,2.60674424]
[1768932163788,0.16667,3002.7,3001.5,1.80051437]
[1768932164084,3.50061,3003.9,3002.1,4.39119161]
[1768932164287,0.3402492,3003.6,3002.2,2.59067724]
[1768932164493,0.3402492,3003.5,3002.2,2.59067724]
[1768932164789,0.16661,3003.8,3002.2,2.59067724]
[1768932164986,0.34026988,3003.6,3002.2,2.59067724]
[1768932165287,0.16661,3003.8,3002.2,2.59067724]
[1768932165688,0.34021924,3003.6,3002.2,2.59067724]
[1768932165884,0.16661,3003.8,3002.2,2.59067724]
[1768932166194,3.00981249,3003.6,3001.8,2.55626681]
[1768932166389,2.84319249,3003.5,3001.8,2.55626681]
[1768932166589,0.3402238,3003.4,3001.8,2.55626681]
[1768932166795,2.84319249,3003.4,3001.4,2.55626681]
[1768932166987,2.50296869,3003.2,3001.4,2.55626681]
[1768932167294,0.5068738,3003.1,3001.4,2.55626681]
[1768932167482,0.3402238,3003.0,3001.4,2.55626681]
[1768932167884,2.84319249,3003.0,3001.0,1.80051437]
[1768932168089,2.66963869,3002.8,3001.0,1.80051437]
[1768932168383,0.3402238,3002.7,3001.0,1.80051437]
[1768932168585,0.3402238,3002.6,3001.0,1.80051437]
[1768932168790,2.66963869,3002.8,3001.0,1.80051437]
[1768932168987,0.3403326,3002.7,3001.0,1.80051437]
[1768932169186,0.3403326,3002.6,3001.0,1.80051437]
[1768932169380,2.50296869,3002.8,3001.1,2.55626681]
[1768932169684,2.50296869,3003.4,3001.5,2.55626681]
[1768932169894,1.2848115,3003.3,3001.5,2.55626681]
[1768932170087,1.2848115,3003.2,3001.5,2.55626681]
[1768932170287,0.34030043,3003.1,3001.9,2.55626681]
[1768932170485,0.16663,3003.5,3001.9,2.55626681]
[1768932170686,1.28501198,3003.4,3001.9,2.55626681]
[1768932170993,1.28501198,3003.3,3001.9,2.55626681]
[1768932171193,0.34036842,3003.2,3001.9,2.55626681]
[1768932171392,0.34036842,3003.1,3001.9,2.55626681]
[1768932171592,0.16663,3003.5,3001.9,2.55626681]
[1768932171794,3.78813502,3003.4,3001.8,1.80051437]
[1768932171994,1.28516633,3003.3,3001.8,1.80051437]
[1768932172194,0.34040945,3003.2,3001.8,1.80051437]
[1768932172498,0.34040945,3003.1,3001.8,1.80051437]
[1768932172695,2.50296869,3003.4,3001.8,1.80051437]
[1768932172891,2.50296869,3003.4,3001.5,2.55626681]
[1768932172892,1.28531592,3003.3,3001.5,2.55626681]
[1768932173097,1.28532803,3003.2,3001.5,2.55626681]
[1768932173296,0.34044669,3003.1,3001.5,2.55626681]
[1768932173496,0.34044669,3003.0,3001.5,2.55626681]
[1768932173795,2.50296869,3003.4,3001.5,2.55626681]
[1768932173991,1.28552891,3003.3,3001.5,2.55626681]
[1768932174191,1.28552891,3003.2,3001.5,2.55626681]
[1768932174392,1.28562752,3003.1,3001.5,2.55626681]
[1768932174591,1.28562752,3003.0,3001.5,2.55626681]
[1768932174901,1.28558667,3002.9,3001.4,1.80051437]
[1768932175095,2.50296869,3003.2,3001.4,1.80051437]
[1768932175096,1.28558667,3002.8,3001.4,1.80051437]
[1768932175399,1.28558667,3002.7,3001.4,1.80051437]
[1768932175693,2.50296869,3003.2,3001.0,9.65278118]
[1768932175888,2.66962869,3003.0,3001.0,9.65278118]
[1768932176089,2.50296869,3002.8,3001.0,7.69078118]
[1768932176296,2.50296869,3002.6,3001.0,7.69078118]
[1768932176497,1.28560731,3002.5,3001.0,7.69078118]
[1768932176795,2.50296869,3002.6,3001.0,7.69078118]
[1768932176998,1.28532884,3002.5,3001.0,7.69078118]
[1768932177189,2.50296869,3002.6,3001.0,4.35678118]
[1768932177385,1.28528621,3002.5,3001.0,4.35678118]
[1768932177588,2.50296869,3002.6,3001.0,4.35678118]
[1768932177790,1.28528376,3002.5,3001.0,4.35678118]
[1768932177988,2.50296869,3002.6,3001.0,4.35678118]
[1768932178191,1.28529047,3002.5,3001.0,4.35678118]
[1768932178392,2.50296869,3002.6,3001.0,4.35678118]
[1768932178597,1.28527989,3002.5,3001.1,2.55626681]
[1768932178799,0.16667,3002.8,3001.1,2.55626681]
[1768932178990,1.28529858,3002.7,3001.1,2.55626681]
[1768932179299,1.28529858,3002.6,3001.1,2.55626681]
[1768932179501,0.16667,3002.8,3001.1,2.55626681]
[1768932179801,1.28535064,3002.7,3001.1,2.55626681]
[1768932180000,1.28535064,3002.6,3001.1,2.55626681]
[1768932180304,2.66963869,3002.8,3001.1,2.55626681]
[1768932180597,2.50296869,3002.6,3001.1,2.55626681]
[1768932180799,1.28533636,3002.5,3001.1,2.55626681]
[1768932181000,1.28533636,3002.4,3001.1,2.55626681]
[1768932181201,2.50296869,3002.6,3001.1,2.55626681]
[1768932181403,1.28526999,3002.5,3001.1,2.55626681]
[1768932181706,0.16667,3002.7,3001.1,2.55626681]
[1768932181899,1.28526306,3002.6,3001.1,2.55626681]
[1768932182105,1.45194306,3002.5,3001.1,2.55626681]
[1768932182407,1.28526306,3002.4,3000.6,4.35678118]
[1768932182697,1.28526306,3002.3,3000.7,2.55626681]
[1768932182904,0.16668,3002.5,3000.7,2.55626681]
[1768932183109,1.28517948,3002.4,3000.8,1.80051437]
[1768932183303,1.28517948,3002.3,3000.8,4.35678118]
[1768932183606,0.16668,3002.5,3000.8,4.35678118]
[1768932183807,1.28516662,3002.4,3000.8,4.35678118]
[1768932184001,1.28516662,3002.3,3000.8,4.35678118]
[1768932184200,0.16668,3002.5,3000.8,4.35678118]
[1768932184503,0.34041084,3002.4,3000.8,4.35678118]
[1768932184707,0.34041084,3002.3,3000.8,4.35678118]
[1768932185011,0.16668,3002.5,3000.8,4.35678118]
[1768932185213,0.34032397,3002.4,3000.8,4.35678118]
[1768932185408,0.50701397,3002.3,3000.8,2.55626681]
[1768932185608,0.34032397,3002.2,3000.8,2.55626681]
[1768932185912,0.34032397,3002.1,3000.5,0.0024882]
[1768932186107,0.34032397,3002.0,3000.5,0.0024882]
[1768932186311,0.34032397,3001.9,3000.5,0.0024882]
[1768932186511,0.1667,3002.2,3000.5,0.0024882]
[1768932186711,2.66969869,3001.7,3000.5,0.0024882]
[1768932187008,3.78689982,3001.6,3000.5,0.0024882]
[1768932187207,0.34025158,3001.5,3000.5,0.0024882]
[1768932187403,0.00387862,3001.5,3000.5,0.0024882]
[1768932187608,0.33988695,3001.4,3000.5,0.0024882]
[1768932187913,0.33986512,3001.3,3000.5,0.0024882]
[1768932188215,2.67358731,3001.5,3000.5,0.0024882]
[1768932188417,0.3396018,3001.4,3000.5,0.0024882]